bitfinex/quotes_SOLUSD_20250904
["timestamp","ask_amount","ask_price","bid_price","bid_amount"]
[1756994955408,10.74604622,205.59,205.54,10.74604622]
[1756994955611,10.74604622,205.59,205.52,4.8657065]
[1756994955810,10.74604622,205.61,205.55,10.74604622]
[1756994956116,10.74604622,205.62,205.53,0.98432314]
[1756994956319,10.74604622,205.62,205.56,10.74604622]
[1756994956511,10.74604622,205.62,205.53,0.98432314]
[1756994956697,44.53,205.65,205.58,10.74604622]
[1756994956698,10.74604622,205.63,205.58,10.74604622]
[1756994956900,13.59559401,205.7,205.52,17.02997275]
[1756994956901,10.74604622,205.68,205.62,10.74604622]
[1756994957146,10.74604622,205.69,205.63,10.74604622]
[1756994957425,10.74604622,205.67,205.59,0.28432314]
[1756994957593,7.15952217,205.65,205.58,0.7]
[1756994957794,0.67,205.68,205.61,7.15952217]
[1756994957990,43.86,205.71,205.63,7.15952217]
[1756994957991,7.15952217,205.69,205.63,7.15952217]
[1756994958405,0.67,205.7,205.62,7.15952217]
[1756994958609,43.86,205.71,205.63,7.15952217]
[1756994958906,7.15952217,205.72,205.67,7.15952217]
[1756994959097,7.82952217,205.71,205.65,7.15952217]
[1756994959296,7.15952217,205.69,205.63,7.15952217]
[1756994959625,0.67,205.71,205.62,0.7]
[1756994959626,0.67,205.71,205.64,12.02238931]
[1756994959932,7.15952217,205.72,205.67,7.15952217]
[1756994960216,0.67,205.75,205.68,7.15952217]
[1756994960414,7.15952217,205.74,205.65,0.28432314]
[1756994960722,0.67,205.74,205.64,7.15952217]
[1756994960924,7.15952217,205.65,205.6,0.28432314]
[1756994961128,7.15952217,205.64,205.59,7.15952217]
[1756994961421,0.67,205.73,205.63,12.0226258]
[1756994961614,0.67,205.72,205.58,7.15952217]
[1756994961805,7.15952217,205.64,205.57,0.7]
[1756994962013,7.15952217,205.65,205.57,0.7]
[1756994962214,7.15952217,205.65,205.64,0.03]
[1756994962407,7.15952217,205.67,205.64,0.03]
[1756994962610,7.82952217,205.68,205.64,0.03]
[1756994962815,7.15952217,205.68,205.64,0.03]
[1756994963015,0.06,205.7,205.64,7.18952217]
[1756994963326,0.06,205.7,205.65,7.15952217]
[1756994963521,0.06,205.7,205.66,4.86239424]
[1756994963718,7.21952217,205.7,205.66,4.86239424]
[1756994964025,0.06,205.7,205.66,12.02191641]
[1756994964227,0.06,205.7,205.66,4.86239424]
[1756994964521,0.06,205.7,205.66,12.02191641]
[1756994964927,0.06,205.7,205.69,7.15952217]
[1756994965107,0.06,205.7,205.69,7.44384531]
[1756994965420,0.06,205.7,205.64,0.03]
[1756994965421,0.06,205.7,205.68,7.15952217]
[1756994965626,0.06,205.7,205.65,4.86263068]
[1756994965927,0.06,205.7,205.66,7.15952217]
[1756994966111,0.06,205.7,205.67,7.15952217]
[1756994966309,0.06,205.7,205.64,4.89271909]
[1756994966310,7.82952217,205.69,205.64,4.89271909]
[1756994966516,7.15952217,205.68,205.64,4.89271909]
[1756994966720,0.06,205.7,205.64,0.03]
[1756994967024,7.21952217,205.7,205.64,7.18952217]
[1756994967236,7.21952217,205.7,205.64,12.0523384]
[1756994967530,0.06,205.7,205.67,4.86215782]
[1756994967739,7.15952217,205.68,205.64,0.03]
[1756994967900,7.82952217,205.68,205.64,0.03]
[1756994968107,7.15952217,205.66,205.64,0.03]
[1756994968412,0.06,205.7,205.64,0.03]
[1756994968413,7.82952217,205.65,205.64,0.03]
[1756994968624,7.82952217,205.65,205.49,0.72]
[1756994968927,7.15952217,205.57,205.51,7.15952217]
[1756994969105,7.15952217,205.58,205.53,7.15952217]
[1756994969308,0.67,205.61,205.53,7.15952217]
[1756994969630,7.15952217,205.58,205.52,7.15952217]
[1756994969810,7.15952217,205.58,205.45,0.72]
[1756994969811,7.15952217,205.56,205.45,0.72]
[1756994970013,7.15952217,205.56,205.5,7.15952217]
[1756994970230,0.67,205.57,205.46,4.86712742]
[1756994970411,7.15952217,205.58,205.53,7.15952217]
[1756994970610,0.67,205.6,205.54,7.15952217]
[1756994970819,7.15952217,205.57,205.47,1.00432314]
[1756994971020,0.67,205.59,205.52,7.15952217]
[1756994971221,7.15952217,205.58,205.52,7.15952217]
[1756994971420,0.67,205.62,205.54,7.15952217]
[1756994971624,0.67,205.62,205.55,4.86499635]
[1756994971827,4.86313076,205.63,205.51,7.15952217]
[1756994971828,7.15952217,205.56,205.51,7.15952217]
[1756994972030,0.67,205.55,205.51,7.15952217]
[1756994972330,7.82952217,205.55,205.47,0.72]
[1756994972533,0.67,205.55,205.5,7.15952217]
[1756994972835,4.86357667,205.61,205.45,4.86736432]
[1756994972836,0.67,205.54,205.45,4.86736432]
[1756994973040,0.67,205.54,205.46,7.15952217]
[1756994973211,7.15952217,205.53,205.47,7.15952217]
[1756994973412,0.67,205.54,205.5,7.15952217]
[1756994973731,0.67,205.54,205.5,4.86603303]
[1756994973934,0.67,205.57,205.5,4.86603303]
[1756994974130,26.0,205.61,205.52,7.15952217]
[1756994974329,7.15952217,205.56,205.5,12.0255552]
[1756994974515,7.82952217,205.56,205.5,12.0255552]
[1756994974715,7.15952217,205.55,205.5,4.86603303]
[1756994974917,0.67,205.55,205.5,12.0255552]
[1756994975118,7.82952217,205.54,205.5,4.86603303]
[1756994975326,0.67,205.54,205.5,4.86603303]
[1756994975535,0.67,205.58,205.52,7.15952217]
[1756994975721,0.67,205.58,205.52,12.02500048]
[1756994975927,0.67,205.58,205.52,4.86547831]
[1756994976129,7.15952217,205.57,205.52,4.86547831]
[1756994976316,26.67,205.62,205.52,5.58547831]
[1756994976518,7.15952217,205.59,205.54,7.15952217]
[1756994976732,26.0,205.62,205.55,7.15952217]
[1756994976917,7.15952217,205.6,205.55,7.15952217]
[1756994977116,7.82952217,205.6,205.55,7.15952217]
[1756994977328,0.67,205.59,205.46,12.88732681]
[1756994977637,5.53418297,205.59,205.51,7.15952217]
[1756994977827,7.15952217,205.57,205.51,7.15952217]
[1756994978136,7.15952217,205.57,205.47,17.03411689]
[1756994978322,0.67,205.57,205.47,17.03411689]
[1756994978832,7.82952217,205.57,205.47,17.03411689]
[1756994979023,0.67,205.56,205.47,4.86689054]
[1756994979344,0.67,205.6,205.54,7.15952217]
[1756994979520,7.15952217,205.59,205.54,7.15952217]
[1756994979716,7.15952217,205.55,205.49,4.86641685]
[1756994980042,7.15952217,205.57,205.52,7.15952217]
[1756994980236,7.82952217,205.57,205.52,7.15952217]
[1756994980739,7.15952217,205.55,205.5,7.15952217]
[1756994980943,0.67,205.54,205.45,0.72]
[1756994981146,7.15952217,205.53,205.41,17.75909254]
[1756994981350,30.86406207,205.59,205.48,7.15952217]
[1756994981517,7.15952217,205.55,205.5,7.15952217]
[1756994981836,0.67,205.55,205.5,7.15952217]
[1756994982012,0.67,205.54,205.48,4.86645298]
[1756994982217,7.82952217,205.54,205.49,7.15952217]
[1756994982421,0.67,205.54,205.49,7.15952217]
[1756994982738,4.8642864,205.58,205.52,7.15952217]
[1756994982739,7.15952217,205.57,205.52,7.15952217]
[1756994982925,26.0,205.61,205.52,7.15952217]
[1756994983123,7.15952217,205.58,205.52,7.15952217]
[1756994983333,7.15952217,205.58,205.48,17.0330872]
[1756994983334,7.15952217,205.56,205.5,7.15952217]
[1756994983547,7.15952217,205.54,205.47,0.03]
[1756994983724,7.15952217,205.51,205.47,0.03]
[1756994983921,0.71,205.51,205.47,0.03]
[1756994984123,12.02522955,205.52,205.47,0.03]
[1756994984431,0.71,205.5,205.47,0.03]
[1756994984923,0.71,205.49,205.47,0.03]
[1756994985427,4.8655944,205.53,205.47,0.03]
[1756994985737,7.15952217,205.51,205.47,0.03]
[1756994985938,7.15952217,205.5,205.47,0.03]
[1756994986240,0.71,205.5,205.47,0.03]
[1756994986444,26.0,205.56,205.47,0.03]
[1756994986445,7.86952217,205.49,205.47,0.03]
[1756994986821,0.71,205.48,205.47,0.03]
[1756994987128,4.8655496,205.53,205.47,0.03]
[1756994987443,7.15952217,205.51,205.47,0.03]
[1756994987931,7.86952217,205.51,205.47,0.03]
[1756994988128,7.15952217,205.5,205.47,0.03]
[1756994988327,7.86952217,205.5,205.47,0.03]
[1756994988728,0.71,205.49,205.47,0.03]
[1756994989126,0.71,205.48,205.47,0.03]
[1756994989324,7.86952217,205.48,205.47,0.03]
[1756994990326,5.57665368,205.48,205.47,0.03]
[1756994990647,5.57665368,205.48,205.33,24.35014064]
[1756994990649,5.57665368,205.48,205.28,1.12157825]
[1756994990650,42.07655634,205.48,205.28,1.12157825]
[1756994990821,20.0,205.35,205.12,4.875195]
[1756994991021,20.0,205.35,205.11,16.90593725]
[1756994991022,20.0,205.3,205.11,16.90593725]
[1756994991247,14.58,205.23,205.12,0.72]
[1756994991452,12.17883913,205.28,205.12,0.72]
[1756994991453,0.71,205.29,205.12,17.78309143]
[1756994991631,115.45010886,205.34,205.13,0.22]
[1756994991818,0.71,205.28,205.12,16.78309143]
[1756994992022,26.71,205.27,205.12,4.59510392]
[1756994992241,26.71,205.27,205.11,16.90593725]
[1756994992242,7.15952217,205.2,205.11,16.90593725]
[1756994992448,7.15952217,205.12,205.11,16.90593725]
[1756994992947,0.71,205.18,205.11,21.78135519]
[1756994993155,7.15952217,205.2,205.11,21.78135519]
[1756994993328,26.0,205.26,205.11,21.78135519]
[1756994993329,0.71,205.24,205.11,21.78135519]
[1756994993524,60.54,205.31,205.13,7.15952217]
[1756994993525,74.13559401,205.31,205.13,7.15952217]
[1756994993724,7.15952217,205.14,205.11,21.78135519]
[1756994994045,7.15952217,205.12,205.11,16.90593725]
[1756994994253,7.86952217,205.12,205.11,12.02601926]
[1756994994437,28.62463835,205.12,205.11,12.02601926]
[1756994994634,33.57694685,205.12,205.11,7.14610127]
[1756994994824,26.41742468,205.12,205.11,7.14610127]
[1756994995050,26.0,205.09,205.04,0.07465909]
[1756994995371,34.50093401,205.15,205.08,7.15952217]
[1756994995652,34.50093401,205.15,205.07,0.72]
[1756994995821,34.50093401,205.15,205.08,0.72]
[1756994996241,7.224512,205.15,205.14,7.15952217]
[1756994996449,7.15952217,205.23,205.14,0.72]
[1756994996649,0.71,205.22,205.12,0.72]
[1756994996853,0.71,205.22,205.08,0.72]
[1756994997064,20.32300596,205.24,205.18,7.15952217]
[1756994997349,20.32300596,205.24,205.2,4.87329434]
[1756994997551,20.32300596,205.24,205.21,0.72]
[1756994997725,20.32300596,205.24,205.2,4.87329434]
[1756994997929,20.32300596,205.24,205.12,24.37574842]
[1756994997930,7.15952217,205.23,205.13,0.72]
[1756994998162,0.71,205.23,205.09,0.72]
[1756994998331,25.19536043,205.24,205.09,0.72]
[1756994998332,7.15952217,205.17,205.09,0.72]
[1756994998526,7.15952217,205.16,205.09,0.72]
[1756994998727,0.71,205.18,205.11,7.15952217]
[1756994998932,7.86952217,205.18,205.09,0.72]
[1756994999248,19.57223821,205.22,205.09,0.72]
[1756994999453,20.28223821,205.22,205.15,7.15952217]
[1756994999623,20.28223821,205.22,205.16,7.15952217]
[1756995000137,20.28223821,205.22,205.11,0.72]
[1756995000534,19.57223821,205.22,205.11,0.72]
[1756995000735,25.1550641,205.22,205.11,0.72]
[1756995000944,7.15952217,205.15,205.04,0.79465909]
[1756995001142,0.71,205.2,205.09,0.03]
[1756995001336,20.28223821,205.22,205.11,4.87543269]
[1756995001850,20.28223821,205.22,205.12,0.72]
[1756995002051,19.57223821,205.22,205.12,0.72]
[1756995002735,19.57223821,205.22,205.21,7.15952217]
[1756995003142,20.28223821,205.22,205.11,0.72]
[1756995003340,20.28223821,205.22,205.16,7.15952217]
[1756995003542,20.28223821,205.22,205.18,7.15952217]
[1756995003856,19.57223821,205.22,205.21,7.15952217]
[1756995004033,19.57223821,205.22,205.12,4.875195]
[1756995004034,19.57223821,205.22,205.13,0.28432314]
[1756995004229,19.57223821,205.22,205.14,0.72]
[1756995004761,0.71,205.32,205.2,7.15952217]
[1756995004969,4.17301937,205.31,205.18,0.72]
[1756995005268,0.71,205.31,205.25,7.15952217]
[1756995005479,21.20264737,205.38,205.3,7.15952217]
[1756995005632,3.46397536,205.37,205.36,7.15952217]
[1756995005827,4.8754247,205.39,205.37,0.72]
[1756995006026,0.71,205.46,205.38,7.15952217]
[1756995006255,3.46652767,205.45,205.44,7.15952217]
[1756995006461,0.71,205.46,205.42,7.15952217]
[1756995006667,0.06,205.49,205.43,0.72]
[1756995006961,0.06,205.49,205.48,7.15952217]
[1756995007131,0.06,205.49,205.45,0.72]
[1756995007338,0.06,205.49,205.42,0.72]
[1756995007851,0.06,205.49,205.33,0.72]
[1756995007852,7.15952217,205.44,205.33,0.72]
[1756995008054,0.71,205.45,205.33,5.59019057]
[1756995008260,0.06,205.49,205.35,26.0]
[1756995008462,0.06,205.49,205.48,7.15952217]
[1756995008636,0.71,205.48,205.36,0.72]
[1756995008831,7.15952217,205.45,205.39,7.15952217]
[1756995009158,0.71,205.44,205.35,0.72]
[1756995009335,0.06,205.49,205.36,0.72]
[1756995009541,0.06,205.49,205.48,7.15952217]
[1756995010230,0.06,205.49,205.48,0.72]
[1756995010431,0.06,205.49,205.48,7.87952217]
[1756995010662,0.06,205.49,205.43,0.72]
[1756995010854,0.06,205.49,205.48,7.15952217]
[1756995011579,0.77,205.49,205.32,7.15952217]
[1756995011862,7.15952217,205.44,205.33,0.72]
[1756995012062,7.15952217,205.42,205.37,7.15952217]
[1756995012359,7.15952217,205.42,205.39,7.15952217]
[1756995012360,0.65,205.42,205.39,7.15952217]
[1756995012575,0.65,205.41,205.32,7.15952217]
[1756995012740,0.65,205.46,205.4,7.15952217]
[1756995013062,0.65,205.46,205.32,7.15952217]
[1756995013063,0.06,205.49,205.45,7.15952217]
[1756995013272,0.06,205.49,205.37,0.66]
[1756995013273,0.06,205.49,205.48,7.15952217]
[1756995013436,0.06,205.49,205.44,7.15952217]
[1756995013635,0.06,205.49,205.47,7.15952217]
[1756995013832,0.65,205.48,205.44,7.15952217]
[1756995014249,0.06,205.49,205.45,7.15952217]
[1756995014465,0.71,205.49,205.45,7.15952217]
[1756995014650,0.65,205.48,205.37,4.86926035]
[1756995014840,0.65,205.48,205.41,7.15952217]
[1756995015038,0.06,205.49,205.45,7.15952217]
[1756995015235,7.15952217,205.48,205.39,0.66]
[1756995015440,7.15952217,205.4,205.31,0.66]
[1756995015665,0.65,205.41,205.32,7.15952217]
[1756995015972,0.65,205.41,205.31,0.66]
[1756995016267,7.15952217,205.39,205.33,7.15952217]
[1756995016446,7.80952217,205.41,205.35,7.15952217]
[1756995016643,7.15952217,205.39,205.28,0.66]
[1756995016871,7.15952217,205.38,205.28,5.53124801]
[1756995017039,7.15952217,205.35,205.23,0.66]
[1756995017243,7.15952217,205.31,205.25,7.15952217]
[1756995017449,7.15952217,205.31,205.2,0.66]
[1756995017450,7.15952217,205.3,205.24,7.15952217]
[1756995017653,4.87087607,205.31,205.24,10.84401461]
[1756995017844,16.36448804,205.32,205.2,5.53316104]
[1756995018065,10.84401461,205.31,205.25,10.84401461]
[1756995018261,10.84401461,205.31,205.26,10.84401461]
[1756995018440,5.52047343,205.32,205.26,10.84401461]
[1756995018441,0.65,205.35,205.29,10.84401461]
[1756995018642,26.65,205.35,205.31,10.84401461]
[1756995018871,30.86973533,205.35,205.31,10.84401461]
[1756995019079,0.65,205.34,205.26,0.66]
[1756995019378,3.92265947,205.52,205.27,4.87163248]
[1756995019668,0.65,205.41,205.38,10.84401461]
[1756995019867,10.84401461,205.39,205.33,10.84401461]
[1756995020081,10.84401461,205.35,205.29,10.84401461]
[1756995020240,0.65,205.38,205.31,10.84401461]
[1756995020442,0.65,205.42,205.37,10.84401461]
[1756995020749,0.65,205.41,205.38,10.84401461]
[1756995021069,0.65,205.41,205.31,0.66]
[1756995021070,0.65,205.4,205.31,0.66]
[1756995021255,11.49401461,205.4,205.34,10.84401461]
[1756995021569,16.36265135,205.4,205.28,0.66]
[1756995021864,10.84401461,205.32,205.21,0.66]
[1756995022073,63.22,205.33,205.25,10.84401461]
[1756995022254,0.06,205.31,205.21,0.66]
[1756995022445,0.06,205.31,205.26,10.84401461]
[1756995022846,0.06,205.31,205.3,10.84401461]
[1756995023075,0.06,205.31,205.18,0.66]
[1756995023377,0.06,205.31,205.3,10.84401461]
[1756995023575,0.06,205.31,205.3,16.37493521]
[1756995023868,0.06,205.31,205.3,5.5309206]
[1756995024080,0.06,205.49,205.3,28.83655985]
[1756995024244,0.06,205.49,205.41,10.84401461]
[1756995024245,0.65,205.45,205.41,10.84401461]
[1756995024449,4.92647114,205.49,205.31,0.28432314]
[1756995024664,4.92647114,205.49,205.43,10.84401461]
[1756995024973,4.92647114,205.49,205.39,0.94432314]
[1756995024974,0.06,205.49,205.39,0.94432314]
[1756995025149,10.90401461,205.49,205.39,0.66]
[1756995025473,10.84401461,205.47,205.37,0.66]
[1756995025648,10.84401461,205.41,205.33,0.66]
[1756995025852,10.84401461,205.41,205.36,10.84401461]
[1756995026069,0.65,205.46,205.4,10.84401461]
[1756995026268,0.06,205.49,205.39,0.66]
[1756995026571,0.06,205.49,205.46,10.84401461]
[1756995026773,0.06,205.49,205.39,0.94432314]
[1756995026774,0.65,205.48,205.43,10.84401461]
[1756995026948,0.65,205.47,205.36,0.66]
[1756995027146,26.0,205.46,205.33,0.66]
[1756995027375,10.84401461,205.43,205.33,0.66]
[1756995027592,10.84401461,205.42,205.33,0.66]
[1756995027798,10.84401461,205.42,205.1,77.01605844]
[1756995027799,10.84401461,205.37,205.27,0.66]
[1756995027944,10.84401461,205.36,205.27,0.66]
[1756995028147,0.65,205.39,205.3,10.84401461]
[1756995028376,0.65,205.38,205.33,10.84401461]
[1756995028548,26.65,205.41,205.29,0.66]
[1756995028749,0.65,205.41,205.29,0.66]
[1756995028982,10.84401461,205.39,205.24,10.84401461]
[1756995029281,10.84401461,205.37,205.25,0.66]
[1756995029581,0.65,205.36,205.3,10.84401461]
[1756995029749,30.63551611,205.4,205.25,5.53205299]
[1756995029750,26.0,205.37,205.25,0.66]
[1756995030084,26.0,205.36,205.28,10.84401461]
[1756995030270,26.65,205.36,205.29,10.84401461]
[1756995030458,26.65,205.36,205.31,10.84401461]
[1756995030459,0.65,205.36,205.31,10.84401461]
[1756995030651,10.84401461,205.38,205.32,10.84401461]
[1756995030851,63.48,205.39,205.31,10.84401461]
[1756995031058,0.65,205.38,205.24,0.66]
[1756995031392,10.84401461,205.35,205.3,10.84401461]
[1756995031593,26.0,205.36,205.17,12.18495792]
[1756995031594,10.84401461,205.33,205.17,12.18495792]
[1756995031756,5.51997175,205.34,205.28,10.84401461]
[1756995031947,5.51997175,205.34,205.18,4.87376937]
[1756995031948,16.36398636,205.34,205.29,10.84401461]
[1756995032148,16.36398636,205.34,205.23,0.66]
[1756995032149,0.65,205.33,205.27,10.84401461]
[1756995032350,0.65,205.33,205.23,0.66]
[1756995032581,4.86997175,205.34,205.23,0.66]
[1756995032751,15.71398636,205.34,205.28,10.84401461]
[1756995032950,10.84401461,205.31,205.25,10.84401461]
[1756995033152,0.65,205.31,205.2,0.66]
[1756995033371,10.84401461,205.29,205.24,10.84401461]
[1756995033652,11.49401461,205.28,205.22,10.84401461]
[1756995033885,64.01,205.31,205.2,0.66]
[1756995034062,64.01,205.31,205.22,10.84401461]
[1756995034063,10.84401461,205.28,205.22,10.84401461]
[1756995034259,0.65,205.28,205.23,10.84401461]
[1756995034474,0.65,205.27,205.23,10.84401461]
[1756995034681,0.65,205.3,205.19,0.66]
[1756995034880,0.65,205.34,205.29,10.84401461]
[1756995035053,0.65,205.34,205.16,41.71540132]
[1756995035054,0.65,205.34,205.25,0.66]
[1756995035259,0.65,205.39,205.25,0.94432314]
[1756995035459,5.51878621,205.39,205.35,10.84401461]
[1756995035660,0.65,205.38,205.35,10.84401461]
[1756995035872,33.64,205.41,205.37,10.84401461]
[1756995036186,0.65,205.44,205.3,4.87078966]
[1756995036187,0.65,205.44,205.4,10.84401461]
[1756995036366,68.20708474,205.47,205.43,10.84401461]
[1756995036578,10.84401461,205.44,205.32,0.66]
[1756995036776,10.84401461,205.41,205.32,0.66]
[1756995037279,10.84401461,205.42,205.36,10.84401461]
[1756995037469,10.84401461,205.4,205.28,0.94432314]
[1756995037668,10.84401461,205.4,205.35,10.84401461]
[1756995037875,0.65,205.39,205.34,10.84401461]
[1756995038060,11.49401461,205.39,205.28,5.53139516]
[1756995038267,0.65,205.39,205.35,10.84401461]
[1756995038482,0.65,205.39,205.28,5.53139516]
[1756995039169,0.65,205.39,205.33,10.84401461]
[1756995039374,11.49401461,205.39,205.28,5.53139516]
[1756995039575,15.71303788,205.38,205.33,10.84401461]
[1756995039782,4.86874572,205.4,205.28,4.87139516]
[1756995039969,4.86874572,205.4,205.36,10.84401461]
[1756995040169,5.51810552,205.42,205.38,10.84401461]
[1756995040372,26.65,205.42,205.39,10.84401461]
[1756995040590,26.65,205.42,205.33,0.66]
[1756995040591,63.14,205.44,205.4,10.84401461]
[1756995040799,0.65,205.43,205.39,10.84401461]
[1756995041094,4.86739552,205.45,205.42,10.84401461]
[1756995041269,0.65,205.44,205.35,0.66]
[1756995041466,0.65,205.44,205.29,0.28432314]
[1756995041698,14.58,205.41,205.28,0.66]
[1756995041899,0.65,205.4,205.35,10.84401461]
[1756995042077,63.83,205.4,205.36,10.84401461]
[1756995042263,0.7,205.39,205.3,0.66]
[1756995042466,0.7,205.39,205.34,10.84401461]
[1756995042683,26.0,205.37,205.24,0.69]
[1756995042873,26.0,205.37,205.31,10.84401461]
[1756995043077,0.7,205.38,205.34,10.84401461]
[1756995043290,0.76,205.38,205.33,10.84401461]
[1756995043466,0.76,205.38,205.34,0.69]
[1756995043467,0.06,205.38,205.34,0.69]
[1756995043663,0.06,205.38,205.3,0.69]
[1756995043882,0.06,205.38,205.36,10.84401461]
[1756995044078,0.06,205.38,205.37,10.84401461]
[1756995044299,0.06,205.38,205.32,0.69]
[1756995044472,0.06,205.38,205.37,10.84401461]
[1756995044798,11.60401461,205.38,205.28,0.69]
[1756995045088,0.06,205.38,205.37,10.84401461]
[1756995045479,11.60401461,205.38,205.28,0.69]
[1756995045690,4.86926035,205.37,205.33,10.84401461]
[1756995045889,0.7,205.36,205.22,0.28432314]
[1756995046099,11.54401461,205.36,205.31,10.84401461]
[1756995046266,11.54401461,205.36,205.3,10.84401461]
[1756995046267,0.7,205.35,205.3,10.84401461]
[1756995046469,4.86926035,205.37,205.32,10.84401461]
[1756995046778,0.7,205.36,205.27,0.69]
[1756995046968,0.7,205.36,205.32,10.84401461]
[1756995047173,15.71327496,205.37,205.27,0.69]
[1756995047390,5.56926035,205.37,205.25,0.69]
[1756995047580,10.84401461,205.35,205.3,10.84401461]
[1756995047784,10.84401461,205.33,205.27,10.84401461]
[1756995048268,94.34997175,205.34,205.28,10.84401461]
[1756995048468,67.64997175,205.34,205.3,10.84401461]
[1756995048780,79.19398636,205.34,205.25,0.69]
[1756995048979,62.76,205.35,205.32,10.84401461]
[1756995049193,0.7,205.34,205.31,10.84401461]
[1756995049378,0.7,205.34,205.25,0.69]
[1756995049572,0.7,205.34,205.3,10.84401461]
[1756995049787,62.7,205.36,205.32,10.84401461]
[1756995050079,0.06,205.38,205.35,10.84401461]
[1756995050277,0.06,205.38,205.37,10.84401461]
[1756995050680,0.06,205.38,205.37,0.69]
[1756995050883,0.06,205.38,205.37,11.53401461]
[1756995051790,0.06,205.38,205.37,16.40327496]
[1756995052291,0.06,205.38,205.37,27.53161271]
[1756995052676,1e-08,205.38,205.37,27.53161271]
[1756995052919,0.06,205.49,205.38,0.28432314]
[1756995053196,0.06,205.49,205.48,10.84401461]
[1756995053610,0.06,205.49,205.43,0.69]
[1756995053782,0.06,205.49,205.48,10.84401461]
[1756995054176,0.2,205.6,205.48,22.37802922]
[1756995054393,0.2,205.6,205.59,10.84401461]
[1756995054875,0.2,205.6,205.59,11.53401461]
[1756995055782,0.2,205.6,205.59,15.70806441]
[1756995056003,0.2,205.6,205.57,4.86452303]
[1756995056304,0.2,205.6,205.59,10.84401461]
[1756995056598,0.2,205.6,205.51,12.8542702]
[1756995056795,0.2,205.6,205.52,4.8657065]
[1756995057003,5.06391532,205.6,205.56,10.84401461]
[1756995057175,0.7,205.59,205.54,10.84401461]
[1756995057376,5.06391532,205.6,205.55,10.84401461]
[1756995057577,0.7,205.59,205.48,17.7232879]
[1756995057901,5.56415266,205.59,205.55,10.84401461]
[1756995058396,0.7,205.58,205.42,0.69]
[1756995058574,10.84401461,205.55,205.49,10.84401461]
[1756995058771,0.7,205.58,205.53,10.84401461]
[1756995058975,0.7,205.58,205.48,0.69]
[1756995059197,0.7,205.58,205.54,10.84401461]
[1756995059380,66.82415266,205.59,205.45,0.69]
[1756995059381,11.54401461,205.57,205.45,0.69]
[1756995059576,10.84401461,205.56,205.45,0.69]
[1756995059777,4.86523304,205.54,205.49,10.84401461]
[1756995059980,15.70924765,205.54,205.48,10.84401461]
[1756995060186,10.84401461,205.52,205.41,0.69]
[1756995060387,0.7,205.53,205.49,10.84401461]
[1756995060881,4.8647653,205.56,205.52,10.84401461]
[1756995061076,10.84401461,205.53,205.41,0.69]
[1756995061277,4.8647653,205.56,205.38,10.84401461]
[1756995061278,10.84401461,205.49,205.43,10.84401461]
[1756995061479,10.84401461,205.52,205.46,10.84401461]
[1756995061802,4.86618004,205.5,205.45,10.84401461]
[1756995062104,0.7,205.5,205.41,5.55829418]
[1756995062313,0.7,205.5,205.45,10.84401461]
[1756995063514,0.7,205.53,205.41,4.86829418]
[1756995063702,0.06,205.55,205.5,10.84401461]
[1756995063898,10.84401461,205.53,205.47,10.84401461]
[1756995064113,10.84401461,205.48,205.33,26.0]
[1756995064321,10.84401461,205.46,205.37,0.69]
[1756995064524,10.84401461,205.45,205.39,10.84401461]
[1756995064686,0.7,205.47,205.39,10.84401461]
[1756995064886,0.7,205.47,205.4,10.84401461]
[1756995065088,10.84401461,205.44,205.38,10.84401461]
[1756995065307,10.84401461,205.43,205.38,10.84401461]
[1756995065524,10.84401461,205.41,205.33,4.87019773]
[1756995065824,0.7,205.42,205.36,10.84401461]
[1756995065986,10.84401461,205.41,205.32,0.69]
[1756995066191,5.56818734,205.42,205.34,10.84401461]
[1756995066391,0.7,205.42,205.32,5.56042416]
[1756995066608,61.64,205.47,205.39,10.84401461]